Cogmind - Beta 14 @@@ ROGUE MODE // 2024.11.05 @ 10:04:47 Player: Dadrick Result: Destroyed by as-39375 with Assembled F-torch Performance ------------- Evolutions (0) 0 Regions Visited (2) 400 Robots Destroyed (29) 145 Value Destroyed (686) 686 Prototype IDs (0) 0 Alien Tech Used (0) 0 Bonus (0) 0 TOTAL SCORE: 1231 Bonus ------- None Cogmind --------- Core Integrity 0/250 Matter 132/300 Energy 100/100 System Corruption 0% Temperature Cool (20) Movement Treading (240) Ox1 Location -10/Mines Parts ------- > --- POWER (1) -------- (None) > --- PROPULSION (2) --- Light Treads > --- UTILITY (2) ------ Large Storage Unit Seismic Detector > --- WEAPON (2) ------- Assault Rifle Grenade Launcher > --- INVENTORY (15) --- Light Nuclear Core Aluminum Leg Improved Heat Sink Improved Heat Sink Visual Processing Unit Sensor Array Improved Terrain Scanner Small Laser Beam Cannon Mining Laser Peak State ------------ > --- POWER ------------ Light Ion Engine > --- PROPULSION ------- Light Treads Light Treads > --- UTILITY ---------- Improved Heat Sink Small Storage Unit > --- WEAPON ----------- Assault Rifle Assault Rifle > --- INVENTORY -------- Ion Engine Light Nuclear Core Aluminum Leg Aluminum Leg Improved Terrain Scanner Seismic Detector Assault Rifle Mining Laser [Rating: 10] Favorites ----------- Power Light Ion Engine Engine Light Ion Engine Propulsion Light Treads Treads Light Treads Utility Improved Heat Sink Device Improved Heat Sink Storage Small Storage Unit Weapon Assault Rifle Energy Cannon Beam Cannon Ballistic Gun Assault Rifle Launcher Grenade Launcher Special Weapon Mining Laser Build | -11 -10 -10 ------- Run | Yrd Mat Min Slots Evolved . | . . . Power . | . . . Propulsion . | . . . Utility . | . . . Weapon . | . . . Parts Attached 28 | 7 10 11 Power 3 | 1 1 1 Engine 3 | 1 1 1 Core . | . . . Reactor . | . . . Propulsion 7 | 2 3 2 Treads 7 | 2 3 2 Leg . | . . . Wheel . | . . . Hover . | . . . Flight . | . . . Utility 6 | 2 3 1 Device 3 | 1 1 1 Storage 3 | 1 2 . Processor . | . . . Hackware . | . . . Protection . | . . . Artifact . | . . . Weapon 12 | 2 3 7 Energy Gun . | . . . Energy Cannon 3 | . 1 2 Ballistic Gun 4 | 2 1 1 Ballistic Cannon . | . . . Launcher 3 | . . 3 Special Weapon 2 | . 1 1 Impact Weapon . | . . . Slashing Weapon . | . . . Piercing Weapon . | . . . Special Melee Weapon . | . . . Unidentified Prototypes . | . . . Parts Lost 6 | . 2 4 Power 1 | . . 1 Propulsion 2 | . . 2 Utility 1 | . 1 . Weapon 2 | . 1 1 Highest Loss Streak 4 | . 1 4 To Critical Strikes . | . . . Average Slot Usage (%) 98 | . 98 98 Engine 13 | . 14 13 Treads 27 | . 27 26 Device 13 | . 12 14 Storage 14 | . 14 14 Energy Cannon 8 | . 6 10 Ballistic Gun 17 | . 19 14 Special Weapon 1 | . 1 1 Peak Build Rating 10 | 7 10 10 Average Rating 8 | 5 9 9 On Entrance 5 | . 7 10 Naked Turns . | . . . Heaviest Build 31 | 13 31 31 Greatest Support 40 | 40 40 40 Greatest Overweight (x) . | . . . Average Overweight (x) . | . . . Largest Inventory Capacity 15 | 8 15 15 Average Capacity 10 | 7 9 15 Most Carried 14 | 6 14 13 Average Carried 9 | 3 8 12 Final Capacity 15 | 8 15 15 Final Carried 13 | 6 13 10 Class Distribution -------------------- 63% | Mutant 36% | Scavenger-Mutant Dominant Class ---------------- Mutant | -10/Materials Mutant | -10/Mines Resources | -11 -10 -10 ----------- Run | Yrd Mat Min Matter Collected 618 | 241 329 48 Remotely . | . . . Salvage Created 973 | 72 757 144 Parts 62 | 6 44 12 Haulers Intercepted 2 | . 2 . Recyclers Shooed 3 | . 3 . Parts Field Recycled . | . . . Retrieved Matter . | . . . Parts Self-Destructed . | . . . Prevented . | . . . Kills | -11 -10 -10 ------- Run | Yrd Mat Min Combat Hostiles Destroyed 20 | . 10 10 Guns 8 | . 6 2 Cannons 4 | . 4 . AOE 8 | . . 8 Classes Destroyed 9 | 2 4 3 Tunneler 3 | 2 . 1 Hauler 2 | . 2 . Recycler 4 | 1 3 . Watcher 3 | . 3 . Swarmer 3 | . . 3 Grunt 11 | . 9 2 Demolisher 2 | . . 2 Subdweller 1 | . 1 . Assembled 3 | . . 3 Best Kill Streak 6 | 1 5 6 Combat Bots Only 5 | . 5 5 Max Kills in Single Turn 3 | 1 1 3 Gunslinging . | . . . Exploded 2 | . . 2 Melee . | . . . Uniques/NPCs Destroyed . | . . . Combat | -11 -10 -10 -------- Run | Yrd Mat Min Hostile Shots Fired 108 | . 46 62 Missed 29 | . 11 18 Damage Taken 1317 | . 527 790 Core 257 | . 74 183 Absorbed by Shields . | . . . Core Remaining (%) 100 | 100 . . Volleys Fired 94 | 9 59 26 Largest 2 | 2 2 2 Hottest 100 | 40 100 100 Shots Fired 160 | 18 110 32 Gun 101 | 18 71 12 Cannon 31 | . 31 . Launcher 9 | . . 9 Special 19 | . 8 11 Kinetic 101 | 18 71 12 Thermal 50 | . 39 11 Explosive 9 | . . 9 Electromagnetic . | . . . Robot Hit Streak 9 | 5 9 7 Robot Miss Streak 2 | 2 2 2 Penetration Max . | . . . Secondary Targets 2 | . . 2 Max Gunslinging Chain 1 | . . 1 Shots Hit Robots 95 | 11 70 14 Core Hits 54 | 7 25 22 Critical Kills . | . . . Critical Parts Destroyed 1 | . 1 . Critical Strikes 1 | . 1 . Destroy 1 | . 1 . Melee Attacks . | . . . Impact . | . . . Slashing . | . . . Piercing . | . . . Sneak Attacks . | . . . Combat Hostiles . | . . . Follow-up Attacks . | . . . Damage Inflicted 1888 | 160 1016 712 Guns 840 | 141 595 104 Cannons 421 | . 421 . Explosions 608 | . . 608 Melee . | . . . Ramming 19 | 19 . . Kinetic 840 | 141 595 104 Thermal 421 | . 421 . Explosive 608 | . . 608 Electromagnetic . | . . . Impact . | . . . Slashing . | . . . Piercing . | . . . Highest Corruption . | . . . Average Corruption . | . . . Corruption Purged . | . . . Corruption Blocked . | . . . Overload Shots . | . . . Overflow Damage 7 | . . 7 Projectiles . | . . . Explosions 7 | . . 7 Melee . | . . . Knockbacks . | . . . Impact . | . . . Kinetic . | . . . Secondary . | . . . Self-Inflicted Damage . | . . . Shots . | . . . Rammed 16 | 16 . . Targets Rammed 16 | 16 . . Kicked . | . . . Crushed . | . . . Highest Temperature 182 | . 19 182 Average Temperature 64 | . 3 78 Received Heat Transfer 280 | . 213 67 Siege Activations . | . . . Robots Corrupted . | . . . Combat Hostiles . | . . . Parts Fried . | . . . Impact Corruptions . | . . . Robots Melted . | . . . Combat Hostiles . | . . . Parts Melted 2 | . 2 . Heat Transferred 888 | . 888 . Parts Sabotaged . | . . . Parts Stolen . | . . . Parts Stripped . | . . . Power Chain Reactions . | . . . Alert | -11 -10 -10 ------- Run | Yrd Mat Min Peak Influence 241 | 15 241 214 Initial 45 | . 9 45 Average 82 | 3 92 103 Maximum Alert Level 1 | . 1 1 Low Security (%) 83 | 100 90 61 Level 1 16 | . 9 38 Level 2 . | . . . Level 3 . | . . . Level 4 . | . . . Level 5 . | . . . High Security . | . . . Max Security . | . . . Squads Dispatched 3 | . 3 . Investigation 2 | . 2 . Extermination . | . . . Reinforcement 1 | . 1 . Assault . | . . . Garrison . | . . . Intercept . | . . . Searches Triggered . | . . . Construction Impeded . | . . . Haulers Reinforced . | . . . Active Scanning Responses . | . . . Cargo Convoy Interrupts . | . . . Stealth | -11 -10 -10 --------- Run | Yrd Mat Min Distress Signals 1 | . 1 . Communications Jammed . | . . . Distress Signals . | . . . Times Spotted 37 | . 22 15 Peak Tracking Total 6 | . 4 6 Tactical Retreats 3 | . 1 2 Traps | -11 -10 -10 ------- Run | Yrd Mat Min Traps Triggered 3 | . 3 . Indirectly . | . . . Trap Hack Attempts . | . . . Triggered . | . . . Disarmed . | . . . Reprogrammed . | . . . Reused . | . . . Traps Extracted . | . . . Installed . | . . . Triggered . | . . . Machines | -11 -10 -10 ---------- Run | Yrd Mat Min Machines Disabled . | . . . Max in Single Turn . | . . . Machines Repaired . | . . . Machines Dismantled . | . . . Machines Sabotaged . | . . . Overloaded Fab Kills . | . . . Hacking | -11 -10 -10 --------- Run | Yrd Mat Min Machines Accessed 6 | . 6 . Terminals 4 | . 4 . Fabricators . | . . . Repair Stations . | . . . Recycling Units 2 | . 2 . Scanalyzers . | . . . Garrison Access . | . . . Total Hacks 13 | . 13 . Successful 5 | . 5 . Failed 8 | . 8 . Catastrophic 1 | . 1 . Database Lockouts . | . . . Manual 8 | . 8 . Terminals 10 | . 10 . Fabricators . | . . . Repair Stations . | . . . Recycling Units 3 | . 3 . Scanalyzers . | . . . Garrison Access . | . . . Terminal Hacks 4 | . 4 . Robot Analysis 2 | . 2 . Locate Traps 1 | . 1 . Zone Layout 1 | . 1 . Fabricator Hacks . | . . . Repair Station Hacks . | . . . Recycling Unit Hacks 1 | . 1 . Report Inventory 1 | . 1 . Scanalyzer . | . . . Garrison Access Hacks . | . . . Unauthorized Hacks . | . . . Terminals . | . . . Fabricators . | . . . Repair Stations . | . . . Recycling Units . | . . . Scanalyzers . | . . . Garrison Access . | . . . Data Cores Recovered . | . . . Used . | . . . Hacking Detections 6 | . 6 . Full Trace Events 1 | . 1 . Feedback Events . | . . . Feedback Blocked . | . . . Robot Schematics Acquired . | . . . Robots Built . | . . . Authchips . | . . . Time . | . . . Total Robot Build Rating . | . . . Part Schematics Acquired . | . . . Parts Built . | . . . Authchips . | . . . Time . | . . . Total Part Build Rating . | . . . Parts Repaired . | . . . Time . | . . . Parts Recycled . | . . . Recycled Matter . | . . . Retrieved Matter . | . . . Retrieved Components . | . . . Parts Scanalyzed . | . . . Part Schematics Acquired . | . . . Parts Damaged . | . . . Bothacking | -11 -10 -10 ------------ Run | Yrd Mat Min Used RIF Installer . | . . . Robots Hacked . | . . . Non-combat . | . . . Combat . | . . . Robot Hacks Applied . | . . . Relay Couplers Released . | . . . Fabnet Peak Effective % . | . . . Robots Rewired . | . . . Allies Hacked . | . . . Hacks Repelled . | . . . Allies | -11 -10 -10 -------- Run | Yrd Mat Min Total Allies . | . . . Largest Group . | . . . Highest-Rated Group . | . . . Highest-Rated Ally . | . . . Total Orders . | . . . Ally Attacks . | . . . Total Damage . | . . . Kills . | . . . Allies Corrupted . | . . . Allies Melted . | . . . Intel | -11 -10 -10 ------- Run | Yrd Mat Min Robot Analysis Total 2 | . 2 . Derelict Logs Recovered 1 | . . 1 Drone Launches . | . . . Drone Recoveries . | . . . Exploration | -11 -10 -10 ------------- Run | Yrd Mat Min Turns Passed 1714 | 267 932 515 Spaces Moved 815 | 127 430 258 Core 5 | 5 . . Treads 810 | 122 430 258 Legs . | . . . Wheels . | . . . Hover . | . . . Flight . | . . . Fastest Speed 50 | 50 160 160 Average Speed 159 | 155 160 160 Slowest Speed 160 | 160 160 160 Overloaded Moves . | . . . Propulsion Burnouts . | . . . Robots Hopped . | . . . Cave-ins Triggered . | . . . Exploration Rate (%) 42 | 10 70 48 Regions Visited 2 Branch Regions 1 Pre-discovered Areas 1 | . . 1 Known Exits Taken . | . . . Unknown Exits Taken 2 | 1 1 . Scrap Searched . | . . . Spaces Dug 14 | . 8 6 Terrain Destroyed 98 | . 8 90 Melee . | . . . Projectile 18 | . 8 10 AOE 80 | . . 80 Terrain Rammed . | . . . Walls Destroyed . | . . . Machines Disabled . | . . . Actions | -11 -10 -10 --------- Run | Yrd Mat Min Total 1017 | 165 550 302 Wait 36 | 1 31 4 Move 813 | 126 429 258 Hop . | . . . Pick Up 21 | 6 14 1 Fast Attach 9 | 7 2 . Attach 5 | . 3 2 Detach . | . . . Swap 14 | . 5 9 Drop 9 | . 7 2 Fire 94 | 9 59 26 Melee . | . . . Ram . | . . . Kick . | . . . Crush 16 | 16 . . Escape Stasis . | . . . Rewire . | . . . Trap . | . . . Miscellaneous . | . . . Route ------- -11/Scrapyard -10/Materials (discovered 3 exits: [*Mat] / [*Min x2]) -10/Mines History --------- Turn | Location | Event 7 | -11/Scrapyard | Discovered new exit (range 15) 268 | -11/Scrapyard | Entered Materials 307 | -10/Materials | Build established: Mutant 329 | -10/Materials | Discovered new exit (range 7) 589 | -10/Materials | Discovered new exit (range 10) 968 | -10/Materials | Derelicts attacked the area 1080 | -10/Materials | Build established: Scavenger-Mutant 1168 | -10/Materials | Discovered new exit (range 10) 1200 | -10/Materials | Entered Mines 1618 | -10/Mines | Learned location of Storage (-8) 1650 | -10/Mines | Assembled infested the area 1655 | -10/Mines | Assisted by a Guerilla fighting off Assembled 1694 | -10/Mines | Core integrity fell below 50% 1702 | -10/Mines | Core integrity fell below 20% 1715 | -10/Mines | Destroyed by as-39375 with Assembled F-torch Last Messages --------------- 01690_ Switching to secondary target: D-53 Grenadier. 01693_ The unstable cave ceiling collapses. 01697_ Lgt. Treads destroyed. 01699_ The unstable cave ceiling collapses. 01699_ Ion Engine destroyed. 01700_ The unstable cave ceiling collapses. 01702_ D-53 Grenadier destroyed. 01702_ Switching to secondary target: as-61682. 01704_ The unstable cave ceiling collapses. 01705_ Assault Rifle destroyed. 01705_ U-05 Engineer lays Concrete. 01706_ U-05 Engineer builds a Wall. 01708_ The unstable cave ceiling collapses. 01708_ U-05 Engineer lays Concrete. 01709_ as-39368 destroyed. 01710_ The unstable cave ceiling collapses. 01710_ U-05 Engineer lays Concrete. 01710_ U-05 Engineer builds a Wall. 01711_ as-98915 destroyed. 01713_ as-61682 destroyed. Map ----- +----------------------------------------------------+ | ???????????????????????????????? ? ??????# #????? | | ???????????????????????????????? ? ??????# ###### | | ?????????????????????????????? #?????# | | ??????????????????????????????? ###??# ##### | | ??????????????????????????????? #??# #???# | | ??????????????????????????????? ? ??# #???# | | ??????????????????????????????? ? #### #???# | | ???????????????????????????????# ??# ## ###?# | | ???????????????????????????????# ?## # ### | | ???????????????????????????????# #?# ## | | ???????????# ??????????????????# #?# ### | | ???????????# ##??????????????## #?# #### ##?# | | ??????????## # ??????????????# ### #??## #??# | | ?????????## ?????????????# #????##### | | ?????????# ????????????## #????### | | ?????????? ???????????## ####???## | | ???????????? #?????##### #??????# | | ????????????? # ?#### ##??????# | | ????????????? ## ##???????## | | ?????????????# !! r #?????????## | | ?????????????# *% ### #??????????# | | ????? #### % %! ##### #????????### | | ???? = uu# ### #???????# # # | | ????????# %= # ### #???????# # # | | ????????### =a ###### ##??????## # # | | ??????????#### @ #?##???##### ### # | | ?????????????# # # # ##????## ### # | | ?????????????# # ##""#???## ## ## | | ?????????????####???## #" ##?## ### # | | ?????????????????????## ## ### ###### | | ?????????????????????? ### """ | | ????????????????????? #?## """ ##### | | ????????????????????? ##??## """ #???? | | ?????????????????### ????## ### ###???? | | ?????????????????# ?????####?## ##?????? | | ?????????????????# # ???????????#####??????? | | ???????????????????# # ??????????????????????? | | ???????????????????########??????????????????????? | | ?????????????????????????????????????????????????? | | ?????????????????????????????????????????????????? | | ?????????????????????????????????????????????????? | | ?????????????????????????????????????????????????? | | ?????????????????????????????????????????????????? | | ?????????????????????????????????????????????????? | | | | | | | | | | | | | +----------------------------------------------------+ Best States ------------- Heat Dissipation 39 Energy Generation 10 Energy Capacity 250 Matter Stores 300 Matter Capacity 300 Sight Range 16 Terrain Scan Density 10 Evasion (%) 40 Recoil Reduction 2 Item Schematics ----------------- None Robot Schematics ------------------ None Fabricated ------------ Nothing Alien Tech Used ----------------- None Achievements -------------- None Challenges ------------ None Game ------ Seed LongswordSurveybotChainsword Manual? 0 Play Time 00:13:04 Cumulative 164.5 hours Start 2024.11.05 @ 09:51:27 End 2024.11.05 @ 10:04:47 Sessions 1 Manual Loads 0 Difficulty Rogue Special Mode None Game No. 93 Rogue 72 Adventurer 21 Explorer 0 Win Type - Total 7 Types 5/0/1/1/0/0/0/0/0 Lore% 42 Gallery% 61 Achievement% 49 Wizard Run 0 Options --------- Layout 1 ASCII 0 Keyboard 0 Movement Mouse Keybinds 0 Fullscreen 2 Font 32/SmallcapsGlow Map View 77x35 Zoom Use 0% Tactical HUD 1 Map Filters NONE Filters NONE Steam 1 RUN: eceb0891-328f-4ec8-be1e-3f46c4b1c8dd